fUSD/lending_fUSD_20240409
["ID","MTS","AMOUNT","RATE_DAILY","PERIOD"]
[322014009,1712686790021,-1352.24906472,0.00018372,2]
[322014010,1712686790350,-2000.0,0.00018372,2]
[322014011,1712686790645,-2000.0,0.00018372,2]
[322014012,1712686791004,-2000.0,0.00018372,2]
[322014013,1712686791431,-147.75093528,0.00018372,2]
[322014014,1712686791453,-437.83151786,0.00018479,2]
[322014015,1712686791736,-1414.41754686,0.00018479,2]
[322014016,1712686791792,-2000.0,0.00018479,2]
[322014017,1712686792044,-1110.91245314,0.00018479,2]
[322014018,1712686792066,-153.9,0.00018519,2]
[322014019,1712686792086,-735.18754686,0.0001856,2]
[322014020,1712686792358,-422.15128044,0.0001856,2]
[322014021,1712686792384,-167.35,0.00018562,2]
[322014022,1712686792412,-389.96779382,0.00018625,2]
[322014023,1712686792444,-153.9,0.00018627,2]
[322014024,1712686792469,-153.9,0.00018734,2]
[322014025,1712686792491,-712.73092574,0.000188,2]
[322014026,1712686793226,-444.60790155,0.000188,2]
[322014027,1712686793249,-153.9,0.00018841,2]
[322014028,1712686793273,-1181.75074304,0.00018848,2]
[322014029,1712686793296,-219.74135541,0.0001889,3]
[322014030,1712686793374,-44.06864459,0.0001889,3]
[322014031,1712686793399,-791.47,0.0001889,3]
[322014032,1712686793422,-1164.46135541,0.00018899,2]
[322014033,1712686793777,-2000.0,0.00018899,2]
[322014034,1712686794342,-2000.0,0.00018899,2]
[322014035,1712686794461,-2000.0,0.00018899,2]
[322014036,1712686794672,-318.18604723,0.00018899,2]
[322014037,1712686794696,-1681.81395277,0.000189,2]
[322014038,1712686794979,-2000.0,0.000189,2]
[322014039,1712686795310,-2000.0,0.000189,2]
[322014040,1712686795651,-2000.0,0.000189,2]
[322014041,1712686795965,-2000.0,0.000189,2]
[322014042,1712686796304,-2000.0,0.000189,2]
[322014043,1712686796611,-298.79604723,0.000189,2]
[322014044,1712686796632,-1701.20395277,0.000189,2]
[322014045,1712686796915,-2000.0,0.000189,2]
[322014046,1712686797268,-2000.0,0.000189,2]
[322014047,1712686797594,-2000.0,0.000189,2]
[322014048,1712686797883,-2000.0,0.000189,2]
[322014049,1712686798211,-2000.0,0.000189,2]
[322014050,1712686798521,-2000.0,0.000189,2]
[322014051,1712686798837,-2000.0,0.000189,2]
[322014052,1712686799425,-2000.0,0.000189,2]
[322014053,1712686799735,-2000.0,0.000189,2]
[322014054,1712686800110,-2000.0,0.000189,2]
[322014055,1712686800414,-2000.0,0.000189,2]
[322014056,1712686800729,-2000.0,0.000189,2]
[322014057,1712686801040,-2000.0,0.000189,2]
[322014058,1712686801395,-2000.0,0.000189,2]
[322014059,1712686801909,-2000.0,0.000189,2]
[322014060,1712686802393,-2000.0,0.000189,2]
[322014062,1712686857316,155.0,0.00014382,2]
[322014063,1712686877393,-485.11,0.0001813,2]
[322014064,1712686877420,-623.87360474,0.00018277,2]
[322014065,1712686877445,-153.9,0.00018278,2]
[322014066,1712686877469,-153.9,0.00018468,2]
[322014067,1712686877497,-153.9,0.00018659,2]
[322014068,1712686877519,-153.9,0.00018849,2]
[322014069,1712686877541,-150.0,0.00018899,2]
[322014070,1712686877561,-125.41639526,0.000189,2]
[322014071,1712686878042,-2000.0,0.000189,2]
[322014072,1712686878445,-2000.0,0.000189,2]
[322014073,1712686878760,-2000.0,0.000189,2]
[322014074,1712686879135,-2000.0,0.000189,2]
[322014075,1712686879315,155.0,0.00014382,2]
[322014076,1712686879599,-2000.0,0.000189,2]
[322014077,1712686879921,-2000.0,0.000189,2]
[322014078,1712686880253,-2000.0,0.000189,2]
[322014079,1712686880638,-2000.0,0.000189,2]
[322014080,1712686880937,-2000.0,0.000189,2]
[322014081,1712686881709,-2000.0,0.000189,2]
[322014082,1712686882055,-2000.0,0.000189,2]
[322014083,1712686882716,-2000.0,0.000189,2]
[322014084,1712686883394,-2000.0,0.000189,2]
[322014085,1712686884579,-2000.0,0.000189,2]
[322014086,1712686899313,305.68312009,0.00014296,2]
[322014087,1712686902827,-2000.0,0.00018899,2]
[322014088,1712686903600,-2000.0,0.00018899,2]
[322014089,1712686904095,-2000.0,0.00018899,2]
[322014090,1712686904512,-2000.0,0.00018899,2]
[322014091,1712686904955,-2000.0,0.00018899,2]
[322014092,1712686905779,-2000.0,0.00018899,2]
[322014093,1712686906233,-2000.0,0.00018899,2]
[322014094,1712686906618,-2000.0,0.00018899,2]
[322014095,1712686907247,-2000.0,0.00018899,2]
[322014096,1712686907540,-1395.60651429,0.00018899,2]
[322014097,1712686907562,-604.39348571,0.00018899,2]
[322014103,1712687038823,150.0,0.00017473,2]
[322014104,1712687038896,150.0,0.00017848,2]
[322014105,1712687098519,150.0,0.00017534,2]
[322014106,1712687098556,150.0,0.0001739,2]
[322014107,1712687098624,150.0,0.00017748,2]
[322014108,1712687098678,150.0,0.00017238,2]
[322014109,1712687098744,150.0,0.00017169,2]
[322014110,1712687098825,150.0,0.0001743,2]
[322014111,1712687141022,655.63,0.00015975,2]
[322014112,1712687287193,186.96,0.00017823,2]
[322014116,1712687365406,155.22,0.00017987,2]
[322014118,1712687373778,333.0,0.00017,2]
[322014125,1712687432850,-325.03814807,0.00018033,2]
[322014126,1712687432860,-518.97156777,0.00018034,2]
[322014127,1712687432871,-858.16390953,0.00018034,2]
[322014128,1712687432909,-858.85640371,0.00018034,2]
[322014143,1712687433980,-3068.56611899,0.00018034,2]
[322014144,1712687433990,-150.0,0.00018079,2]
[322014145,1712687434000,-815.03,0.00018087,2]
[322014146,1712687434010,-23900.0,0.00018122,2]
[322014147,1712687434020,-150.0,0.00018132,2]
[322014148,1712687434030,-155.1,0.00018134,2]
[322014149,1712687434040,-655.63,0.00018239,2]
[322014150,1712687434051,-499.99,0.00018356,2]
[322014151,1712687434060,-248.636703,0.00018356,2]
[322014152,1712687434071,-150.0,0.00018388,2]
[322014153,1712687434081,-150.0,0.00018394,2]
[322014154,1712687434090,-150.0,0.0001844,2]
[322014155,1712687434100,-155.22,0.00018456,2]
[322014156,1712687434110,-150.0,0.00018516,2]
[322014157,1712687434119,-150.0,0.00018563,2]
[322014158,1712687434129,-150.0,0.00018568,2]
[322014159,1712687434139,-167.72,0.00018587,2]
[322014160,1712687434148,-150.0,0.00018869,2]
[322014161,1712687434158,-1000.0,0.00018897,2]
[322014162,1712687434168,-16492.36477796,0.00018898,2]
[322014163,1712687434178,-38173.37965197,0.000189,2]
[322014164,1712687434187,-200.0,0.000189,2]
[322014165,1712687434197,-155.22,0.00018924,2]
[322014166,1712687434207,-150.0,0.00018942,2]
[322014167,1712687434217,-3890.8854,0.00018963,2]
[322014168,1712687434226,-805.6403,0.00018963,2]
[322014169,1712687434235,-221.83669334,0.00018965,2]
[322014170,1712687434245,-650.4919551,0.00018978,2]
[322014171,1712687434254,-300.0,0.00018999,2]
[322014172,1712687434263,-259.25084898,0.00018999,2]
[322014173,1712687434273,-1250.0,0.00019,3]
[322014174,1712687434282,-150.0,0.00019014,2]
[322014175,1712687434292,-527.62,0.00019053,3]
[322014176,1712687434302,-278.40403451,0.00019061,2]
[322014177,1712687434311,-626.66603795,0.00019061,2]
[322014178,1712687434320,-1086.48348448,0.00019061,2]
[322014179,1712687434330,-342.50720573,0.00019062,2]
[322014180,1712687434339,-3374.83061436,0.00019062,2]
[322014181,1712687434349,-1500.0,0.00019062,2]
[322014182,1712687434359,-1058.17735735,0.00019062,2]
[322014183,1712687434369,-245000.0,0.00019063,2]
[322014184,1712687434378,-332.24789752,0.00019078,2]
[322014185,1712687434388,-3972.1948,0.00019078,2]
[322014186,1712687434397,-200.0,0.00019089,2]
[322014187,1712687434407,-730.68,0.00019097,2]
[322014188,1712687434417,-730.68,0.00019102,2]
[322014189,1712687434427,-730.68,0.00019108,2]
[322014190,1712687434437,-730.68,0.00019113,2]
[322014191,1712687434447,-730.68,0.00019118,2]
[322014192,1712687434456,-730.68,0.00019123,2]
[322014193,1712687434466,-730.68,0.00019128,2]
[322014194,1712687434477,-730.68,0.00019133,2]
[322014195,1712687434486,-730.68,0.00019138,2]
[322014196,1712687434497,-730.68,0.00019143,2]
[322014197,1712687434507,-730.68,0.00019148,2]
[322014198,1712687434517,-730.68,0.00019153,2]
[322014199,1712687434527,-730.68,0.00019158,2]
[322014200,1712687434536,-730.68,0.00019163,2]
[322014201,1712687434548,-730.68,0.00019168,2]
[322014202,1712687434558,-730.68,0.00019173,2]
[322014203,1712687434572,-201.84235747,0.00019176,2]
[322014204,1712687434581,-730.68,0.00019178,2]
[322014205,1712687434592,-500.0,0.00019178,2]
[322014206,1712687434602,-500.0,0.00019178,2]
[322014207,1712687434612,-500.0,0.00019178,2]
[322014208,1712687434622,-500.0,0.00019178,2]
[322014209,1712687434631,-300.0,0.00019178,2]
[322014210,1712687434641,-158.40536406,0.00019178,2]
[322014211,1712687434650,-500.0,0.00019178,2]
[322014212,1712687434661,-500.0,0.00019178,2]
[322014213,1712687434671,-556.07760046,0.00019178,2]
[322014214,1712687434682,-630.50652478,0.00019178,2]
[322014215,1712687434691,-500.0,0.00019178,2]
[322014216,1712687434700,-517.33,0.00019178,2]
[322014217,1712687434710,-866.73,0.00019178,2]
[322014218,1712687434719,-500.0,0.00019178,2]
[322014219,1712687434728,-500.0,0.00019178,2]
[322014220,1712687434737,-500.0,0.00019178,2]
[322014221,1712687434749,-500.0,0.00019178,2]
[322014222,1712687434759,-500.0,0.00019178,2]
[322014223,1712687434768,-500.0,0.00019178,2]
[322014224,1712687434778,-601.90345764,0.00019178,2]
[322014225,1712687434787,-500.0,0.00019178,2]
[322014226,1712687434798,-500.0,0.00019178,2]
[322014227,1712687434807,-500.0,0.00019178,2]
[322014228,1712687434818,-500.0,0.00019178,2]
[322014229,1712687434827,-500.0,0.00019178,2]
[322014230,1712687434837,-160.25521478,0.00019178,2]
[322014231,1712687434848,-500.0,0.00019178,2]
[322014232,1712687434858,-500.0,0.00019178,2]
[322014233,1712687434868,-500.0,0.00019178,2]
[322014234,1712687434877,-500.0,0.00019178,2]
[322014235,1712687434887,-500.0,0.00019178,2]
[322014236,1712687434896,-500.0,0.00019178,2]
[322014237,1712687434906,-500.0,0.00019178,2]
[322014238,1712687434915,-500.0,0.00019178,2]
[322014239,1712687434924,-500.0,0.00019178,2]
[322014240,1712687434934,-500.0,0.00019178,2]
[322014241,1712687434943,-500.0,0.00019178,2]
[322014242,1712687434952,-500.0,0.00019178,2]
[322014243,1712687434962,-500.0,0.00019178,2]
[322014244,1712687434971,-500.0,0.00019178,2]
[322014245,1712687434980,-500.0,0.00019178,2]
[322014246,1712687434989,-500.0,0.00019178,2]
[322014247,1712687434998,-500.0,0.00019178,2]
[322014248,1712687435008,-500.0,0.00019178,2]
[322014249,1712687435017,-500.0,0.00019178,2]
[322014250,1712687435026,-500.0,0.00019178,2]
[322014251,1712687435035,-500.0,0.00019178,2]
[322014252,1712687435046,-248.92562167,0.00019178,2]
[322014253,1712687435056,-500.0,0.00019178,2]
[322014254,1712687435065,-500.0,0.00019178,2]
[322014255,1712687435075,-608.7626874,0.00019178,2]
[322014256,1712687435084,-500.0,0.00019178,2]
[322014257,1712687435094,-500.0,0.00019178,2]
[322014258,1712687435103,-500.0,0.00019178,2]
[322014259,1712687435113,-500.0,0.00019178,2]
[322014260,1712687435122,-500.0,0.00019178,2]
[322014261,1712687435131,-500.0,0.00019178,2]
[322014262,1712687435141,-500.0,0.00019178,2]
[322014263,1712687435151,-500.0,0.00019178,2]
[322014264,1712687435160,-500.0,0.00019178,2]
[322014265,1712687435170,-500.0,0.00019178,2]
[322014266,1712687435179,-500.0,0.00019178,2]
[322014267,1712687435189,-500.0,0.00019178,2]
[322014268,1712687435199,-500.0,0.00019178,2]
[322014269,1712687435208,-500.0,0.00019178,2]
[322014270,1712687435217,-500.0,0.00019178,2]
[322014271,1712687435227,-500.0,0.00019178,2]
[322014272,1712687435236,-500.0,0.00019178,2]
[322014273,1712687435246,-500.0,0.00019178,2]
[322014274,1712687435257,-500.0,0.00019178,2]
[322014275,1712687435266,-500.0,0.00019178,2]
[322014276,1712687435276,-500.0,0.00019178,2]
[322014277,1712687435286,-500.0,0.00019178,2]
[322014278,1712687435296,-500.0,0.00019178,2]
[322014279,1712687435306,-500.0,0.00019178,2]
[322014280,1712687435315,-500.0,0.00019178,2]
[322014281,1712687435325,-500.0,0.00019178,2]
[322014282,1712687435334,-500.0,0.00019178,2]
[322014283,1712687435344,-500.0,0.00019178,2]
[322014284,1712687435354,-571.26,0.00019178,2]
[322014285,1712687435363,-500.0,0.00019178,2]
[322014286,1712687435373,-500.0,0.00019178,2]
[322014287,1712687435382,-500.0,0.00019178,2]
[322014288,1712687435392,-500.0,0.00019178,2]
[322014289,1712687435401,-500.0,0.00019178,2]
[322014290,1712687435411,-500.0,0.00019178,2]
[322014291,1712687435420,-500.0,0.00019178,2]
[322014292,1712687435430,-150.0,0.00019178,2]
[322014293,1712687435440,-500.0,0.00019178,2]
[322014294,1712687435449,-500.0,0.00019178,2]
[322014295,1712687435460,-336.78462418,0.00019178,2]
[322014296,1712687435470,-500.0,0.00019178,2]
[322014297,1712687435480,-500.0,0.00019178,2]
[322014298,1712687435490,-500.0,0.00019178,2]
[322014299,1712687435500,-500.0,0.00019178,2]
[322014300,1712687435520,-500.0,0.00019178,2]
[322014301,1712687435531,-500.0,0.00019178,2]
[322014302,1712687435542,-500.0,0.00019178,2]
[322014303,1712687435552,-751.36,0.00019178,2]
[322014304,1712687435563,-500.0,0.00019178,2]
[322014305,1712687435573,-552.10936626,0.00019178,2]
[322014306,1712687435585,-500.0,0.00019178,2]
[322014307,1712687435595,-500.0,0.00019178,2]
[322014308,1712687435605,-500.0,0.00019178,2]
[322014309,1712687435614,-500.0,0.00019178,2]
[322014310,1712687435625,-500.0,0.00019178,2]
[322014311,1712687435635,-644.41312337,0.00019178,2]
[322014312,1712687435644,-592.3,0.00019178,2]
[322014313,1712687435655,-500.0,0.00019178,2]
[322014314,1712687435665,-500.0,0.00019178,2]
[322014315,1712687435674,-452.26109107,0.00019178,2]
[322014316,1712687435684,-500.0,0.00019178,2]
[322014317,1712687435694,-500.0,0.00019178,2]
[322014318,1712687435704,-500.0,0.00019178,2]
[322014319,1712687435713,-500.0,0.00019178,2]
[322014320,1712687435724,-500.0,0.00019178,2]
[322014321,1712687435734,-500.0,0.00019178,2]
[322014322,1712687435743,-500.0,0.00019178,2]
[322014323,1712687435754,-500.0,0.00019178,2]
[322014324,1712687435764,-500.0,0.00019178,2]
[322014325,1712687435774,-500.0,0.00019178,2]
[322014326,1712687435784,-500.0,0.00019178,2]
[322014327,1712687435795,-500.0,0.00019178,2]
[322014328,1712687435805,-500.0,0.00019178,2]
[322014329,1712687435815,-500.0,0.00019178,2]
[322014330,1712687436120,-186.84217884,0.00019178,2]
[322014331,1712687436130,-500.0,0.00019178,2]
[322014332,1712687436139,-500.0,0.00019178,2]
[322014333,1712687436148,-2109.47,0.00019178,2]
[322014334,1712687436157,-500.0,0.00019178,2]
[322014335,1712687436167,-500.0,0.00019178,2]
[322014336,1712687436176,-500.0,0.00019178,2]
[322014337,1712687436185,-500.0,0.00019178,2]
[322014338,1712687436194,-500.0,0.00019178,2]
[322014339,1712687436204,-900.71,0.00019178,2]
[322014340,1712687436213,-967.48,0.00019178,2]
[322014341,1712687436222,-500.0,0.00019178,2]
[322014342,1712687436231,-500.0,0.00019178,2]
[322014343,1712687436240,-500.0,0.00019178,2]
[322014344,1712687436250,-500.0,0.00019178,2]
[322014345,1712687436259,-500.0,0.00019178,2]
[322014346,1712687436268,-500.0,0.00019178,2]
[322014347,1712687436278,-2338.52,0.00019178,2]
[322014348,1712687436287,-500.0,0.00019178,2]
[322014349,1712687436299,-500.0,0.00019178,2]
[322014350,1712687436309,-581.2,0.00019178,2]
[322014351,1712687436319,-500.0,0.00019178,2]
[322014352,1712687436328,-500.0,0.00019178,2]
[322014353,1712687436338,-433.55,0.00019178,2]
[322014354,1712687436347,-1413.04,0.00019178,2]
[322014355,1712687436357,-4360.66725629,0.00019178,2]
[322014356,1712687436384,-490.35265103,0.00019178,2]
[322014357,1712687436443,-1808.42009268,0.00019178,2]
[322014358,1712687436453,-848.02,0.00019178,2]
[322014359,1712687436462,-2390.44,0.00019178,2]
[322014360,1712687436472,-500.0,0.00019178,2]
[322014361,1712687436481,-500.0,0.00019178,2]
[322014362,1712687436491,-500.0,0.00019178,2]
[322014363,1712687436500,-1107.43,0.00019178,2]
[322014364,1712687436509,-500.0,0.00019178,2]
[322014365,1712687436519,-615.74,0.00019178,2]
[322014366,1712687436528,-9038.22,0.00019178,2]
[322014367,1712687436537,-500.0,0.00019178,2]
[322014368,1712687436550,-500.0,0.00019178,2]
[322014369,1712687436559,-552.83,0.00019178,2]
[322014370,1712687436570,-500.0,0.00019178,2]
[322014371,1712687436585,-500.0,0.00019178,2]
[322014372,1712687436594,-500.0,0.00019178,2]
[322014373,1712687436603,-663.45,0.00019178,2]
[322014374,1712687436613,-1271.78,0.00019178,2]
[322014375,1712687436622,-1308.48,0.00019178,2]
[322014376,1712687436631,-651.41,0.00019178,2]
[322014377,1712687436640,-500.0,0.00019178,2]
[322014378,1712687436650,-1398.63,0.00019178,2]
[322014379,1712687436659,-481.72231265,0.00019178,2]
[322014380,1712687436668,-286.51247139,0.00019178,2]
[322014381,1712687436677,-500.0,0.00019178,2]
[322014382,1712687436687,-691.72,0.00019178,2]
[322014383,1712687436696,-596.04,0.00019178,2]
[322014384,1712687436705,-500.0,0.00019178,2]
[322014385,1712687436714,-749.96,0.00019178,2]
[322014386,1712687436723,-500.0,0.00019178,2]
[322014387,1712687436732,-576.33,0.00019178,2]
[322014388,1712687436741,-500.0,0.00019178,2]
[322014389,1712687436751,-612.43,0.00019178,2]
[322014390,1712687436760,-531.62,0.00019178,2]
[322014391,1712687436770,-983.15,0.00019178,2]
[322014392,1712687436779,-500.0,0.00019178,2]
[322014393,1712687436790,-1408.8,0.00019178,2]
[322014394,1712687436801,-500.0,0.00019178,2]
[322014395,1712687436814,-1037.26,0.00019178,2]
[322014396,1712687436824,-579.9,0.00019178,2]
[322014397,1712687436836,-500.0,0.00019178,2]
[322014398,1712687436846,-561.4,0.00019178,2]
[322014399,1712687436855,-500.0,0.00019178,2]
[322014400,1712687436865,-500.0,0.00019178,2]
[322014401,1712687436875,-500.0,0.00019178,2]
[322014402,1712687436887,-500.0,0.00019178,2]
[322014403,1712687436898,-993.54,0.00019178,2]
[322014404,1712687436908,-517.37,0.00019178,2]
[322014405,1712687436917,-500.0,0.00019178,2]
[322014406,1712687436926,-662.75,0.00019178,2]
[322014407,1712687436935,-500.0,0.00019178,2]
[322014408,1712687436945,-1049.42,0.00019178,2]
[322014409,1712687436953,-500.0,0.00019178,2]
[322014410,1712687436963,-500.0,0.00019178,2]
[322014411,1712687436972,-606.82,0.00019178,2]
[322014412,1712687436981,-500.0,0.00019178,2]
[322014413,1712687436990,-581.35,0.00019178,2]
[322014414,1712687436999,-2158.3,0.00019178,2]
[322014415,1712687437011,-644.05455023,0.00019178,2]
[322014416,1712687437020,-500.0,0.00019178,2]
[322014417,1712687437029,-500.0,0.00019178,2]
[322014418,1712687437039,-500.0,0.00019178,2]
[322014419,1712687437049,-500.0,0.00019178,2]
[322014420,1712687437058,-1466.88,0.00019178,2]
[322014421,1712687437067,-500.0,0.00019178,2]
[322014422,1712687437077,-500.0,0.00019178,2]
[322014423,1712687437086,-2724.94,0.00019178,2]
[322014424,1712687437095,-851.21,0.00019178,2]
[322014425,1712687437105,-500.0,0.00019178,2]
[322014426,1712687437114,-500.0,0.00019178,2]
[322014427,1712687437123,-500.0,0.00019178,2]
[322014428,1712687437133,-736.8,0.00019178,2]
[322014429,1712687437142,-500.0,0.00019178,2]
[322014430,1712687437151,-596.39,0.00019178,2]
[322014431,1712687437160,-704.18,0.00019178,2]
[322014432,1712687437169,-500.0,0.00019178,2]
[322014433,1712687437178,-500.0,0.00019178,2]
[322014434,1712687437187,-500.0,0.00019178,2]
[322014435,1712687437197,-5251.19,0.00019178,2]
[322014436,1712687437205,-501.63,0.00019178,2]
[322014437,1712687437214,-500.0,0.00019178,2]
[322014438,1712687437224,-1648.75,0.00019178,2]
[322014439,1712687437233,-770.37,0.00019178,2]
[322014440,1712687437242,-568.72,0.00019178,2]
[322014441,1712687437251,-500.0,0.00019178,2]
[322014442,1712687437260,-1453.16,0.00019178,2]
[322014443,1712687437269,-1425.93,0.00019178,2]
[322014444,1712687437278,-1557.32,0.00019178,2]
[322014445,1712687437287,-2340.92,0.00019178,2]
[322014446,1712687437298,-519.69,0.00019178,2]
[322014447,1712687437307,-519.50269061,0.00019178,2]
[322014457,1712687439056,-548.07029358,0.00018963,2]
[322014458,1712687439157,-3203.35606378,0.00018963,2]
[322014459,1712687439175,-344.16,0.00018963,2]
[322014460,1712687439235,-421.399227,0.00018963,2]
[322014461,1712687439248,-912.62393623,0.00018963,2]
[322014464,1712687440242,-32759.26517941,0.00018963,2]
[322014465,1712687440252,-939.75730939,0.00019178,2]
[322014466,1712687440263,-500.0,0.00019178,2]
[322014467,1712687440272,-3149.37,0.00019178,2]
[322014468,1712687440281,-500.0,0.00019178,2]
[322014469,1712687440290,-500.0,0.00019178,2]
[322014470,1712687440300,-500.0,0.00019178,2]
[322014471,1712687440309,-529.18,0.00019178,2]
[322014472,1712687440319,-838.19,0.00019178,2]
[322014473,1712687440328,-500.0,0.00019178,2]
[322014474,1712687440338,-866.71,0.00019178,2]
[322014475,1712687440347,-500.0,0.00019178,2]
[322014476,1712687440356,-706.55,0.00019178,2]
[322014477,1712687440365,-6351.03,0.00019178,2]
[322014478,1712687440374,-500.0,0.00019178,2]
[322014479,1712687440384,-571.65,0.00019178,2]
[322014480,1712687440393,-500.0,0.00019178,2]
[322014481,1712687440403,-500.0,0.00019178,2]
[322014482,1712687440412,-1254.69,0.00019178,2]
[322014483,1712687440421,-500.0,0.00019178,2]
[322014484,1712687440430,-816.55,0.00019178,2]
[322014485,1712687440440,-523.23,0.00019178,2]
[322014486,1712687440449,-500.0,0.00019178,2]
[322014487,1712687440458,-500.0,0.00019178,2]
[322014488,1712687440468,-740.6,0.00019178,2]
[322014489,1712687440476,-1506.67,0.00019178,2]
[322014490,1712687440486,-924.41,0.00019178,2]
[322014505,1712687440710,-548.87,0.00019178,2]
[322014507,1712687440720,-902.98,0.00019178,2]
[322014509,1712687440729,-883.25,0.00019178,2]
[322014511,1712687440738,-500.0,0.00019178,2]
[322014513,1712687440747,-500.0,0.00019178,2]
[322014515,1712687440757,-500.0,0.00019178,2]
[322014517,1712687440766,-521.13,0.00019178,2]
[322014519,1712687440775,-578.21,0.00019178,2]
[322014521,1712687440784,-638.76,0.00019178,2]
[322014523,1712687440794,-500.0,0.00019178,2]
[322014525,1712687440803,-500.0,0.00019178,2]
[322014527,1712687440812,-500.0,0.00019178,2]
[322014529,1712687440821,-1113.68,0.00019178,2]
[322014531,1712687440832,-500.0,0.00019178,2]
[322014533,1712687440841,-1454.91,0.00019178,2]
[322014535,1712687440850,-500.0,0.00019178,2]
[322014537,1712687440859,-500.0,0.00019178,2]
[322014539,1712687440869,-818.77,0.00019178,2]
[322014541,1712687440877,-500.0,0.00019178,2]
[322014543,1712687440886,-500.0,0.00019178,2]
[322014544,1712687440896,-870.77,0.00019178,2]
[322014546,1712687440905,-594.45,0.00019178,2]
[322014547,1712687440915,-630.88,0.00019178,2]
[322014548,1712687440925,-500.0,0.00019178,2]
[322014549,1712687440935,-500.0,0.00019178,2]
[322014550,1712687440946,-1318.04,0.00019178,2]
[322014551,1712687440957,-2059.55,0.00019178,2]
[322014552,1712687440966,-1412.05,0.00019178,2]
[322014553,1712687440975,-500.0,0.00019178,2]
[322014554,1712687440985,-500.0,0.00019178,2]
[322014555,1712687440994,-869.1,0.00019178,2]
[322014556,1712687441004,-248.636703,0.00019178,2]
[322014557,1712687441015,-221.83669334,0.0001918,2]
[322014558,1712687441024,-155.21,0.0001918,2]
[322014559,1712687441035,-730.68,0.00019183,2]
[322014560,1712687441046,-150.0,0.00019183,2]
[322014561,1712687441056,-730.68,0.00019188,2]
[322014562,1712687441065,-150.0,0.0001919,2]
[322014563,1712687441074,-730.68,0.00019193,2]
[322014564,1712687441084,-3862.26830008,0.000192,2]
[322014565,1712687441095,-150.0,0.00019209,2]
[322014566,1712687441106,-650.49195504,0.00019253,2]
[322014567,1712687441116,-130483.58852132,0.00019351,2]
[322014568,1712687441125,-88157.38439533,0.00019351,2]
[322014569,1712687441134,-1570.24668823,0.00019352,2]
[322014570,1712687441143,-176.4903007,0.00019352,2]
[322014571,1712687441153,-2821.5496,0.00019352,2]
[322014572,1712687441162,-221.83669334,0.00019395,2]
[322014573,1712687441174,-3385.0,0.000194,2]
[322014574,1712687441183,-7449.32028778,0.00019452,2]
[322014575,1712687441192,-26077.67602111,0.00019452,2]
[322014576,1712687441202,-295.82660405,0.00019452,2]
[322014577,1712687441212,-265.99005763,0.00019452,2]
[322014578,1712687441221,-155.5067665,0.00019452,2]
[322014579,1712687441230,-155.56439644,0.00019452,2]
[322014580,1712687441239,-500.0,0.00019452,2]
[322014581,1712687441250,-500.0,0.00019452,2]
[322014582,1712687441259,-201.05151344,0.00019452,2]
[322014583,1712687441269,-500.0,0.00019452,2]